[Event "Austria Championship Blitz 2024"]
[Site "Innsbruck"]
[Date "2024.06.01"]
[Round "11.7"]
[White "Lerch, Johannes"]
[Black "Blaas, Hansjoerg"]
[Result "1/2-1/2"]
[ECO "B25"]
[WhiteElo "2208"]
[BlackElo "2222"]
[Annotator "RC"]
[PlyCount "116"]
[EventDate "2024.06.01"]
[EventType "swiss"]
[EventCountry "AUT"]
[SourceTitle "playchess.com"]
[Source "ChessBase"]
[SourceQuality "1"]
[TimeControl "180+2"]

1. e4 {[%emt 0:00:01]} c5 {[%emt 0:00:00]} 2. Nc3 {[%emt 0:00:01]} Nc6 {[%emt 0:00:01]} 3. g3 {[%emt 0:00:00]} g6 {[%emt 0:00:00]} 4. Bg2 {[%emt 0:00:01]} Bg7 {[%emt 0:00:01]} 5. d3 {[%emt 0:00:00]} Nf6 {[%emt 0:00:01]} 6. f4 {[%emt 0:00:02]} d6 {[%emt 0:00:02]} 7. Nf3 {[%emt 0:00:01]} O-O {[%emt 0:00:02]} 8. O-O {[%emt 0:00:01]} Bd7 {[%emt 0:00:10]} 9. h3 {[%emt 0:00:01]} a6 {[%emt 0:00:06]} 10. Be3 {[%emt 0:00:03]} Qc7 {[%emt 0:00:02]} 11. Qd2 {[%emt 0:00:03]} e6 {[%emt 0:00:07]} 12. g4 {[%emt 0:00:04]} d5 {[%emt 0:00:02]} 13. Bf2 {[%emt 0:00:18]} dxe4 {[%emt 0:00:09]} 14. dxe4 {[%emt 0:00:02]} Rad8 {[%emt 0:00:02]} 15. e5 {[%emt 0:00:05]} Bc8 {[%emt 0:00:12]} 16. Qe2 {[%emt 0:00:06]} Nd7 {[%emt 0:00:03]} 17. Ne4 {[%emt 0:00:05]} b6 {[%emt 0:00:07]} 18. g5 {[%emt 0:00:18]} Bb7 {[%emt 0:00:16]} 19. Nf6+ {[%emt 0:00:05]} Bxf6 {[%emt 0:00:09]} 20. gxf6 {[%emt 0:00:02]} Nb4 {[%emt 0:00:10]} 21. Ng5 {[%emt 0:00:21]} Bxg2 {[%emt 0:00:07]} 22. Kxg2 {[%emt 0:00:02]} Qc6+ {[%emt 0:00:02]} 23. Kh2 {[%emt 0:00:05]} h6 {[%emt 0:00:03]} 24. Ne4 {[%emt 0:00:17]} Kh7 {[%emt 0:00:14]} 25. c3 {[%emt 0:00:14]} Nd5 {[%emt 0:00:02]} 26. Qf3 {[%emt 0:00:06]} c4 {[%emt 0:00:07]} 27. h4 {[%emt 0:00:04]} Nc5 {[%emt 0:00:14]} 28. Bxc5 {[%emt 0:00:09]} bxc5 {[%emt 0:00:01]} 29. h5 {[%emt 0:00:06]} Rb8 {[%emt 0:00:18]} 30. Rf2 {[%emt 0:00:07]} Rg8 {[%emt 0:00:06]} 31. Rg1 {[%emt 0:00:07]} Rbd8 {[%emt 0:00:17]} 32. hxg6+ {[%emt 0:00:22]} fxg6 {[%emt 0:00:04]} 33. Qh3 {[%emt 0:00:09]} h5 {[%emt 0:00:25]} 34. Ng5+ {[%emt 0:00:05]} Kh6 {[%emt 0:00:28]} 35. Nf7+ {[%emt 0:00:11]} Kh7 {[%emt 0:00:00]} 36. Nxd8 {[%emt 0:00:06]} Rxd8 {[%emt 0:00:00]} 37. Rxg6 {[%emt 0:00:10]} Kxg6 {[%emt 0:00:00]} 38. Rg2+ {[%emt 0:00:01]} Kh6 {[%emt 0:00:00]} 39. Rg5 {[%emt 0:00:06]} Nxf4 {[%emt 0:00:00]} 40. Qg3 {[%emt 0:00:08]} Rd2+ {[%emt 0:00:00]} 41. Kg1 {[%emt 0:00:00]} Rg2+ {[%emt 0:00:00]} 42. Qxg2 {[%emt 0:00:02]} Nxg2 43. Rxg2 {[%emt 0:00:01]} Qe4 {[%emt 0:00:00]} 44. Rf2 {[%emt 0:00:00]} Qg4+ {[%emt 0:00:00]} 45. Kf1 {[%emt 0:00:01]} Qd1+ {[%emt 0:00:09]} 46. Kg2 {[%emt 0:00:01]} Qd5+ {[%emt 0:00:01]} 47. Kf1 {[%emt 0:00:02]} Qd1+ {[%emt 0:00:04]} 48. Kg2 {[%emt 0:00:01]} Qg4+ {[%emt 0:00:01]} 49. Kf1 {[%emt 0:00:01]} Qg8 {[%emt 0:00:05]} 50. f7 {[%emt 0:00:18]} Qf8 51. Rf6+ {[%emt 0:00:00]} Kg5 {[%emt 0:00:02]} 52. Kf2 {[%emt 0:00:00]} Kg4 {[%emt 0:00:01]} 53. Kg2 {[%emt 0:00:00]} h4 {[%emt 0:00:02]} 54. Kh2 {[%emt 0:00:08]} Qd8 {[%emt 0:00:15]} 55. Rf2 {[%emt 0:00:02]} Qf8 {[%emt 0:00:02]} 56. Kg1 {[%emt 0:00:02]} h3 {[%emt 0:00:02]} 57. Kh2 Qa8 {[%emt 0:00:02]} 58. Rf6 {[%emt 0:00:04]} Qf8 {[%emt 0:00:02]} 1/2-1/2

[Event "Austria Championship Blitz 2024"]
[Site "Innsbruck"]
[Date "2024.06.01"]
[Round "11.8"]
[White "Erhard, Jakob"]
[Black "Balint, Peter"]
[Result "1-0"]
[ECO "C52"]
[WhiteElo "2057"]
[BlackElo "2343"]
[Annotator "RC"]
[PlyCount "155"]
[EventDate "2024.06.01"]
[EventType "swiss"]
[EventCountry "AUT"]
[SourceTitle "playchess.com"]
[Source "ChessBase"]
[SourceQuality "1"]
[TimeControl "180+2"]

1. e4 {[%emt 0:00:01]} e5 {[%emt 0:00:00]} 2. Nf3 {[%emt 0:00:01]} Nc6 {[%emt 0:00:00]} 3. Bc4 {[%emt 0:00:01]} Bc5 {[%emt 0:00:02]} 4. b4 {[%emt 0:00:01]} Bxb4 {[%emt 0:00:04]} 5. c3 {[%emt 0:00:01]} Ba5 {[%emt 0:00:00]} 6. d4 {[%emt 0:00:01]} Nge7 {[%emt 0:00:03]} 7. O-O {[%emt 0:00:04]} O-O {[%emt 0:00:03]} 8. d5 {[%emt 0:00:06]} Nb8 {[%emt 0:00:02]} 9. Nxe5 {[%emt 0:00:01]} d6 {[%emt 0:00:00]} 10. Nd3 {[%emt 0:00:02]} Nd7 {[%emt 0:00:02]} 11. Bb3 {[%emt 0:00:01]} Bb6 {[%emt 0:00:02]} 12. Kh1 {[%emt 0:00:01]} f5 {[%emt 0:00:04]} 13. e5 {[%emt 0:00:03]} Ng6 {[%emt 0:00:05]} 14. e6 {[%emt 0:00:01]} Nde5 {[%emt 0:00:04]} 15. f4 {[%emt 0:00:02]} Ng4 {[%emt 0:00:02]} 16. Qf3 {[%emt 0:00:03]} Kh8 {[%emt 0:00:12]} 17. h3 {[%emt 0:00:01]} Nf6 {[%emt 0:00:07]} 18. Na3 {[%emt 0:00:01]} c6 {[%emt 0:00:02]} 19. c4 {[%emt 0:00:03]} Nh4 {[%emt 0:00:09]} 20. Qg3 {[%emt 0:00:02]} Ne4 {[%emt 0:00:02]} 21. Qe1 {[%emt 0:00:03]} Qf6 {[%emt 0:00:16]} 22. Be3 {[%emt 0:00:04]} Qg6 {[%emt 0:00:07]} 23. Qxh4 {[%emt 0:00:12]} Ng3+ {[%emt 0:00:01]} 24. Kh2 {[%emt 0:00:02]} Nxf1+ {[%emt 0:00:01]} 25. Rxf1 {[%emt 0:00:02]} Bxe3 {[%emt 0:00:01]} 26. Rf3 {[%emt 0:00:05]} Bd4 {[%emt 0:00:03]} 27. Nc2 {[%emt 0:00:02]} Bf6 {[%emt 0:00:01]} 28. Qf2 {[%emt 0:00:02]} Qe8 {[%emt 0:00:07]} 29. Qe2 {[%emt 0:00:03]} b5 {[%emt 0:00:05]} 30. Re3 {[%emt 0:00:06]} bxc4 {[%emt 0:00:02]} 31. Bxc4 {[%emt 0:00:01]} Be7 {[%emt 0:00:07]} 32. Ndb4 {[%emt 0:00:04]} Bb7 {[%emt 0:00:07]} 33. dxc6 {[%emt 0:00:23]} Bxc6 {[%emt 0:00:01]} 34. Nd4 {[%emt 0:00:01]} Be4 {[%emt 0:00:03]} 35. Bd5 {[%emt 0:00:04]} Bxd5 {[%emt 0:00:06]} 36. Nxd5 {[%emt 0:00:01]} Rc8 {[%emt 0:00:00]} 37. Qa6 {[%emt 0:00:07]} Rc5 {[%emt 0:00:09]} 38. Qb7 {[%emt 0:00:12]} Qc8 {[%emt 0:01:09]} 39. Qxc8 {[%emt 0:00:08]} Rfxc8 {[%emt 0:00:12]} 40. Nxe7 {[%emt 0:00:01]} Re8 {[%emt 0:00:02]} 41. Nexf5 {[%emt 0:00:02]} Rd5 {[%emt 0:00:04]} 42. Nb5 {[%emt 0:00:08]} Rxf5 {[%emt 0:00:30]} 43. Nxd6 {[%emt 0:00:02]} Rff8 {[%emt 0:00:01]} 44. e7 {[%emt 0:00:07]} Rxe7 {[%emt 0:00:03]} 45. Rxe7 {[%emt 0:00:01]} h6 {[%emt 0:00:03]} 46. Kg3 {[%emt 0:00:02]} a5 {[%emt 0:00:02]} 47. Ra7 {[%emt 0:00:01]} Rf6 {[%emt 0:00:03]} 48. Ne4 {[%emt 0:00:01]} Rf5 {[%emt 0:00:02]} 49. Nd6 {[%emt 0:00:03]} Rd5 {[%emt 0:00:01]} 50. Nc4 {[%emt 0:00:04]} Rd3+ {[%emt 0:00:03]} 51. Kg4 {[%emt 0:00:01]} h5+ {[%emt 0:00:03]} 52. Kxh5 {[%emt 0:00:04]} Rd4 {[%emt 0:00:01]} 53. Nxa5 {[%emt 0:00:03]} Rxf4 {[%emt 0:00:02]} 54. g4 {[%emt 0:00:03]} Kh7 {[%emt 0:00:04]} 55. Kg5 {[%emt 0:00:04]} Ra4 {[%emt 0:00:01]} 56. Nc6 {[%emt 0:00:01]} Rc4 {[%emt 0:00:02]} 57. Ne5 {[%emt 0:00:01]} Rc5 {[%emt 0:00:01]} 58. Kf5 {[%emt 0:00:02]} Kh6 {[%emt 0:00:02]} 59. Ra6+ {[%emt 0:00:01]} Kh7 {[%emt 0:00:01]} 60. g5 {[%emt 0:00:02]} g6+ {[%emt 0:00:04]} 61. Rxg6 {[%emt 0:00:03]} Rc1 {[%emt 0:00:03]} 62. Rh6+ {[%emt 0:00:02]} Kg7 {[%emt 0:00:01]} 63. Ra6 {[%emt 0:00:02]} Rf1+ {[%emt 0:00:01]} 64. Ke4 {[%emt 0:00:00]} Re1+ {[%emt 0:00:01]} 65. Kf4 {[%emt 0:00:01]} Rf1+ {[%emt 0:00:02]} 66. Nf3 {[%emt 0:00:01]} Rb1 {[%emt 0:00:08]} 67. a4 {[%emt 0:00:05]} Rb4+ {[%emt 0:00:00]} 68. Kg3 {[%emt 0:00:01]} Rb3 {[%emt 0:00:00]} 69. h4 {[%emt 0:00:01]} Rb4 {[%emt 0:00:00]} 70. a5 {[%emt 0:00:02]} Ra4 {[%emt 0:00:00]} 71. Ra7+ {[%emt 0:00:01]} Kg6 {[%emt 0:00:00]} 72. a6 {[%emt 0:00:01]} Rg4+ {[%emt 0:00:02]} 73. Kf2 {[%emt 0:00:05]} Ra4 {[%emt 0:00:01]} 74. Ra8 {[%emt 0:00:02]} Kh5 {[%emt 0:00:02]} 75. a7 {[%emt 0:00:04]} Kg4 {[%emt 0:00:01]} 76. g6 {[%emt 0:00:10]} Ra2+ {[%emt 0:00:01]} 77. Ke3 {[%emt 0:00:01]} Ra3+ {[%emt 0:00:01]} 78. Ke4 {[%emt 0:00:00]} 1-0

[Event "Austria Championship Blitz 2024"]
[Site "Innsbruck"]
[Date "2024.06.01"]
[Round "11.9"]
[White "Binder, Moriz"]
[Black "Zanon, Magnus"]
[Result "1-0"]
[ECO "A88"]
[WhiteElo "2210"]
[BlackElo "2092"]
[Annotator "RC"]
[PlyCount "70"]
[EventDate "2024.06.01"]
[EventType "swiss"]
[EventCountry "AUT"]
[SourceTitle "playchess.com"]
[Source "ChessBase"]
[SourceQuality "1"]
[TimeControl "180+2"]

1. d4 {[%emt 0:00:02]} f5 {[%emt 0:00:02]} 2. Nf3 {[%emt 0:00:04]} Nf6 {[%emt 0:00:01]} 3. g3 {[%emt 0:00:00]} d6 {[%emt 0:00:01]} 4. Bg2 {[%emt 0:00:01]} g6 {[%emt 0:00:01]} 5. O-O {[%emt 0:00:02]} Bg7 {[%emt 0:00:00]} 6. c4 {[%emt 0:00:09]} O-O {[%emt 0:00:03]} 7. Nc3 {[%emt 0:00:00]} Qe8 {[%emt 0:00:02]} 8. Re1 {[%emt 0:00:01]} c6 {[%emt 0:00:00]} 9. b4 {[%emt 0:00:30]} Qf7 {[%emt 0:00:05]} 10. Qb3 {[%emt 0:00:07]} h6 {[%emt 0:00:46]} 11. Bb2 {[%emt 0:01:10]} Be6 {[%emt 0:02:23]} 12. Nd2 b5 {[%emt 0:00:00]} 13. d5 {[%emt 0:00:02]} cxd5 {[%emt 0:00:00]} 14. cxd5 {[%emt 0:00:01]} Bd7 {[%emt 0:00:00]} 15. Nf3 {[%emt 0:00:04]} Na6 {[%emt 0:00:00]} 16. Nd4 {[%emt 0:00:04]} Nc7 {[%emt 0:00:00]} 17. Rad1 {[%emt 0:00:04]} a6 {[%emt 0:00:00]} 18. a4 {[%emt 0:00:11]} Rac8 {[%emt 0:00:00]} 19. axb5 {[%emt 0:00:02]} Bxb5 {[%emt 0:00:00]} 20. Ncxb5 {[%emt 0:00:03]} axb5 {[%emt 0:00:00]} 21. Ne6 {[%emt 0:00:19]} Nxe6 {[%emt 0:00:00]} 22. dxe6 {[%emt 0:00:01]} Qe8 {[%emt 0:00:00]} 23. Rc1 {[%emt 0:00:02]} Rxc1 {[%emt 0:00:00]} 24. Rxc1 {[%emt 0:00:01]} Qb8 {[%emt 0:00:00]} 25. Qc2 {[%emt 0:00:03]} Qa7 {[%emt 0:00:00]} 26. e3 {[%emt 0:00:22]} Nh5 {[%emt 0:00:03]} 27. Bxg7 {[%emt 0:00:05]} Nxg7 {[%emt 0:00:01]} 28. Qc7 {[%emt 0:00:01]} Qa3 {[%emt 0:00:05]} 29. Bd5 {[%emt 0:00:12]} Re8 {[%emt 0:00:06]} 30. Qc3 {[%emt 0:00:14]} Qa7 {[%emt 0:00:08]} 31. Rc2 {[%emt 0:00:02]} Kf8 {[%emt 0:00:11]} 32. Qc6 {[%emt 0:00:02]} Qa1+ {[%emt 0:00:02]} 33. Kg2 {[%emt 0:00:01]} Qe5 {[%emt 0:00:02]} 34. Qxb5 {[%emt 0:00:04]} Nxe6 {[%emt 0:00:04]} 35. Qc4 {[%emt 0:00:02]} Ng5 {[%emt 0:00:06]} 1-0

[Event "Austria Championship Blitz 2024"]
[Site "Innsbruck"]
[Date "2024.06.01"]
[Round "11.10"]
[White "Polterauer, Chiara"]
[Black "Kondrak, Christoph"]
[Result "0-1"]
[ECO "B43"]
[WhiteElo "2136"]
[BlackElo "1972"]
[Annotator "RC"]
[PlyCount "54"]
[EventDate "2024.06.01"]
[EventType "swiss"]
[EventCountry "AUT"]
[SourceTitle "playchess.com"]
[Source "ChessBase"]
[SourceQuality "1"]
[TimeControl "180+2"]

1. e4 {[%emt 0:00:01]} c5 {[%emt 0:00:01]} 2. Nf3 {[%emt 0:00:00]} e6 {[%emt 0:00:01]} 3. d4 {[%emt 0:00:01]} cxd4 {[%emt 0:00:00]} 4. Nxd4 {[%emt 0:00:01]} a6 {[%emt 0:00:01]} 5. Nc3 {[%emt 0:00:03]} b5 {[%emt 0:00:01]} 6. a3 {[%emt 0:00:02]} Bb7 {[%emt 0:00:01]} 7. Be2 {[%emt 0:00:08]} Qc7 {[%emt 0:00:01]} 8. f4 {[%emt 0:00:13]} Nf6 {[%emt 0:00:12]} 9. Bf3 {[%emt 0:00:02]} b4 {[%emt 0:00:19]} 10. axb4 {[%emt 0:00:17]} Bxb4 {[%emt 0:00:02]} 11. Qd3 {[%emt 0:00:15]} Bxc3+ {[%emt 0:00:08]} 12. bxc3 {[%emt 0:00:02]} O-O {[%emt 0:00:02]} 13. O-O {[%emt 0:00:06]} d5 {[%emt 0:00:08]} 14. e5 {[%emt 0:00:19]} Ne4 {[%emt 0:00:02]} 15. Bxe4 {[%emt 0:00:12]} dxe4 {[%emt 0:00:01]} 16. Qe3 {[%emt 0:00:01]} Rc8 {[%emt 0:00:11]} 17. Ra3 {[%emt 0:00:08]} Nd7 {[%emt 0:00:10]} 18. Bd2 {[%emt 0:00:05]} Nb6 {[%emt 0:00:03]} 19. Rb3 {[%emt 0:00:07]} Bd5 {[%emt 0:00:07]} 20. Rb4 {[%emt 0:00:13]} Nc4 {[%emt 0:00:02]} 21. Qe2 {[%emt 0:00:08]} Nxd2 {[%emt 0:00:09]} 22. Qxd2 {[%emt 0:00:01]} Qxc3 {[%emt 0:00:01]} 23. Qxc3 {[%emt 0:00:05]} Rxc3 {[%emt 0:00:01]} 24. Ra1 {[%emt 0:00:19]} g6 {[%emt 0:00:06]} 25. Rba4 {[%emt 0:00:11]} Bc4 {[%emt 0:00:31]} 26. Kf2 {[%emt 0:00:16]} Rd8 {[%emt 0:00:02]} 27. Nb3 {[%emt 0:00:14]} Rxc2+ {[%emt 0:00:04]} 0-1

[Event "Austria Championship Blitz 2024"]
[Site "Innsbruck"]
[Date "2024.06.01"]
[Round "11.11"]
[White "Wimmer, Michael"]
[Black "Wetscher, Wolfgang"]
[Result "1-0"]
[ECO "B11"]
[WhiteElo "2142"]
[BlackElo "1937"]
[Annotator "RC"]
[PlyCount "121"]
[EventDate "2024.06.01"]
[EventType "swiss"]
[EventCountry "AUT"]
[SourceTitle "playchess.com"]
[Source "ChessBase"]
[SourceQuality "1"]
[TimeControl "180+2"]

1. e4 {[%emt 0:00:03]} c6 {[%emt 0:00:00]} 2. Nc3 {[%emt 0:00:03]} Qc7 {[%emt 0:00:00]} 3. g3 {[%emt 0:03:02]} d6 4. Bg2 {[%emt 0:00:02]} Nd7 5. d3 {[%emt 0:00:00]} Ngf6 {[%emt 0:00:02]} 6. f4 {[%emt 0:00:00]} e5 {[%emt 0:00:01]} 7. Nf3 {[%emt 0:00:00]} Be7 {[%emt 0:00:01]} 8. O-O {[%emt 0:00:00]} Nf8 {[%emt 0:00:03]} 9. h3 {[%emt 0:00:00]} h6 {[%emt 0:00:03]} 10. Be3 {[%emt 0:00:00]} a6 {[%emt 0:00:10]} 11. a4 {[%emt 0:00:00]} c5 {[%emt 0:00:05]} 12. a5 {[%emt 0:00:00]} Ne6 {[%emt 0:00:03]} 13. Ne2 {[%emt 0:00:00]} Nd4 {[%emt 0:00:03]} 14. c3 {[%emt 0:00:00]} Nxf3+ {[%emt 0:00:05]} 15. Rxf3 {[%emt 0:00:00]} Bd7 {[%emt 0:00:08]} 16. Rf1 {[%emt 0:00:00]} Qc8 {[%emt 0:00:05]} 17. Kh2 {[%emt 0:00:00]} Qc7 {[%emt 0:00:16]} 18. Ng1 {[%emt 0:00:00]} Bc6 {[%emt 0:00:21]} 19. Nf3 {[%emt 0:00:00]} Nd7 {[%emt 0:00:03]} 20. Qb3 {[%emt 0:00:00]} O-O {[%emt 0:00:11]} 21. f5 {[%emt 0:00:00]} Nf6 {[%emt 0:00:05]} 22. c4 {[%emt 0:00:00]} Be8 {[%emt 0:00:23]} 23. g4 {[%emt 0:00:00]} Nd7 {[%emt 0:00:01]} 24. Qc2 {[%emt 0:00:00]} Nb8 {[%emt 0:00:04]} 25. g5 {[%emt 0:00:00]} hxg5 {[%emt 0:00:04]} 26. Nxg5 {[%emt 0:00:00]} Bxg5 {[%emt 0:00:05]} 27. Bxg5 {[%emt 0:00:00]} f6 {[%emt 0:00:01]} 28. Be3 {[%emt 0:00:00]} Nc6 {[%emt 0:00:07]} 29. Rg1 {[%emt 0:00:00]} Bh5 {[%emt 0:00:06]} 30. Qf2 {[%emt 0:00:00]} Kf7 {[%emt 0:00:13]} 31. Bf3 {[%emt 0:00:18]} Bxf3 {[%emt 0:00:01]} 32. Qxf3 {[%emt 0:00:01]} Rh8 {[%emt 0:00:09]} 33. Rg6 {[%emt 0:00:12]} Ne7 {[%emt 0:00:09]} 34. Rg3 {[%emt 0:00:09]} Rh7 {[%emt 0:00:06]} 35. Rag1 {[%emt 0:00:03]} Rah8 {[%emt 0:00:06]} 36. Qg2 {[%emt 0:00:02]} Rg8 {[%emt 0:00:18]} 37. Bd2 {[%emt 0:00:02]} Kf8 {[%emt 0:00:09]} 38. Qf3 {[%emt 0:00:07]} Nc6 {[%emt 0:00:03]} 39. Qd1 {[%emt 0:00:08]} Nd4 {[%emt 0:00:03]} 40. Qf1 {[%emt 0:00:05]} Rgh8 {[%emt 0:00:03]} 41. Qg2 {[%emt 0:00:01]} Qf7 {[%emt 0:00:04]} 42. Bc3 {[%emt 0:00:05]} Nc6 {[%emt 0:00:05]} 43. Qc2 {[%emt 0:00:02]} Qh5 {[%emt 0:00:07]} 44. R1g2 {[%emt 0:00:01]} Qf7 {[%emt 0:00:01]} 45. Qb3 {[%emt 0:00:01]} Qc7 {[%emt 0:00:04]} 46. Qd1 {[%emt 0:00:02]} Qd7 {[%emt 0:00:03]} 47. Qa4 {[%emt 0:00:01]} Qc7 {[%emt 0:00:01]} 48. Qd1 {[%emt 0:00:02]} Rg8 {[%emt 0:00:05]} 49. Qc2 {[%emt 0:00:02]} Rgh8 {[%emt 0:00:01]} 50. Qb1 {[%emt 0:00:01]} Rg8 {[%emt 0:00:05]} 51. b4 {[%emt 0:00:00]} Nd4 {[%emt 0:00:03]} 52. b5 {[%emt 0:00:03]} Qd7 {[%emt 0:00:05]} 53. bxa6 {[%emt 0:00:02]} bxa6 {[%emt 0:00:01]} 54. Qb6 {[%emt 0:00:04]} Qc8 {[%emt 0:00:01]} 55. Qxd6+ {[%emt 0:00:01]} Kf7 {[%emt 0:00:02]} 56. Qd5+ {[%emt 0:00:02]} Kf8 {[%emt 0:00:01]} 57. Bb2 {[%emt 0:00:03]} Qb8 {[%emt 0:00:03]} 58. Ba3 {[%emt 0:00:01]} Nb3 {[%emt 0:00:03]} 59. Rb2 {[%emt 0:00:05]} Rgh8 {[%emt 0:00:04]} 60. Bxc5+ {[%emt 0:00:02]} Nxc5 {[%emt 0:00:02]} 61. Rxb8+ {[%emt 0:00:01]} 1-0

[Event "Austria Championship Blitz 2024"]
[Site "Innsbruck"]
[Date "2024.06.01"]
[Round "11.12"]
[White "Vrban, Damir"]
[Black "Horvath, Reka"]
[Result "1-0"]
[ECO "A03"]
[WhiteElo "2151"]
[BlackElo "2009"]
[Annotator "RC"]
[PlyCount "61"]
[EventDate "2024.06.01"]
[EventType "swiss"]
[EventCountry "AUT"]
[SourceTitle "playchess.com"]
[Source "ChessBase"]
[SourceQuality "1"]
[TimeControl "180+2"]

1. f4 {[%emt 0:00:03]} d5 {[%emt 0:00:01]} 2. Nf3 {[%emt 0:00:02]} Nf6 {[%emt 0:00:03]} 3. g3 {[%emt 0:00:03]} g6 {[%emt 0:00:01]} 4. Bg2 Bg7 5. O-O {[%emt 0:00:03]} O-O {[%emt 0:00:01]} 6. d3 {[%emt 0:00:01]} b6 {[%emt 0:00:10]} 7. Nc3 {[%emt 0:00:47]} Bb7 {[%emt 0:00:06]} 8. Ne5 {[%emt 0:00:24]} c5 {[%emt 0:00:07]} 9. e4 {[%emt 0:00:09]} dxe4 {[%emt 0:00:16]} 10. dxe4 {[%emt 0:00:02]} Nc6 {[%emt 0:00:06]} 11. Nxc6 Bxc6 {[%emt 0:00:02]} 12. e5 {[%emt 0:00:18]} Bxg2 {[%emt 0:00:03]} 13. exf6 {[%emt 0:00:33]} Bxf1 {[%emt 0:00:05]} 14. fxg7 {[%emt 0:00:04]} Kxg7 {[%emt 0:00:03]} 15. Qxd8 {[%emt 0:00:17]} Rfxd8 {[%emt 0:00:02]} 16. Kxf1 {[%emt 0:00:01]} b5 {[%emt 0:00:50]} 17. Be3 {[%emt 0:00:05]} b4 {[%emt 0:00:05]} 18. Ne2 {[%emt 0:00:14]} Rac8 {[%emt 0:00:06]} 19. Kf2 {[%emt 0:00:05]} Rd5 {[%emt 0:00:04]} 20. Kf3 {[%emt 0:00:03]} e5 {[%emt 0:00:01]} 21. c4 {[%emt 0:00:07]} Rd3 {[%emt 0:00:16]} 22. fxe5 {[%emt 0:00:01]} Rcd8 {[%emt 0:00:04]} 23. Ke4 {[%emt 0:00:06]} f5+ {[%emt 0:00:08]} 24. exf6+ {[%emt 0:00:03]} Kxf6 {[%emt 0:00:01]} 25. Nf4 {[%emt 0:00:02]} R3d7 {[%emt 0:00:24]} 26. Nd5+ {[%emt 0:00:03]} Kg7 {[%emt 0:00:03]} 27. Bxc5 {[%emt 0:00:01]} Re8+ {[%emt 0:00:05]} 28. Kd3 {[%emt 0:00:01]} Rb8 {[%emt 0:00:07]} 29. Bd4+ {[%emt 0:00:02]} Kf7 {[%emt 0:00:03]} 30. Rf1+ {[%emt 0:00:01]} Ke6 {[%emt 0:00:02]} 31. Rf6# {[%emt 0:00:23]} 1-0

[Event "Austria Championship Blitz 2024"]
[Site "Innsbruck"]
[Date "2024.06.01"]
[Round "11.13"]
[White "Neuschmied, Siegfried"]
[Black "Kuzmanovic, Zeljko"]
[Result "1-0"]
[ECO "B10"]
[WhiteElo "2234"]
[BlackElo "1866"]
[Annotator "RC"]
[PlyCount "67"]
[EventDate "2024.06.01"]
[EventType "swiss"]
[EventCountry "AUT"]
[SourceTitle "playchess.com"]
[Source "ChessBase"]
[SourceQuality "1"]
[TimeControl "180+2"]

1. e4 {[%emt 0:00:01]} Nf6 {[%emt 0:00:00]} 2. d3 {[%emt 0:00:04]} d5 {[%emt 0:00:13]} 3. Nd2 {[%emt 0:00:01]} e5 {[%emt 0:00:04]} 4. Ngf3 {[%emt 0:00:02]} Bd6 {[%emt 0:00:11]} 5. Be2 {[%emt 0:00:08]} c6 {[%emt 0:00:01]} 6. O-O {[%emt 0:00:03]} O-O {[%emt 0:00:02]} 7. c3 {[%emt 0:00:01]} b6 {[%emt 0:00:05]} 8. Re1 {[%emt 0:00:05]} Ba6 {[%emt 0:00:01]} 9. a4 {[%emt 0:00:11]} Re8 {[%emt 0:00:06]} 10. b4 {[%emt 0:00:04]} dxe4 {[%emt 0:00:06]} 11. dxe4 {[%emt 0:00:01]} Bxe2 {[%emt 0:00:02]} 12. Qxe2 {[%emt 0:00:02]} Nbd7 {[%emt 0:00:10]} 13. Nc4 {[%emt 0:00:08]} Bc7 {[%emt 0:00:03]} 14. Rd1 {[%emt 0:00:18]} Qe7 {[%emt 0:00:07]} 15. Nh4 {[%emt 0:00:05]} g6 {[%emt 0:00:25]} 16. Bg5 {[%emt 0:00:02]} Qe6 {[%emt 0:00:06]} 17. Rd2 {[%emt 0:00:19]} a5 {[%emt 0:00:01]} 18. bxa5 {[%emt 0:00:10]} bxa5 {[%emt 0:00:02]} 19. Rad1 {[%emt 0:00:11]} Nc5 {[%emt 0:00:01]} 20. Qf3 {[%emt 0:00:50]} Nfxe4 {[%emt 0:00:06]} 21. Bh6 {[%emt 0:00:17]} Qxc4 {[%emt 0:00:08]} 22. Rd7 {[%emt 0:00:20]} Nxd7 {[%emt 0:00:10]} 23. Rxd7 {[%emt 0:00:01]} Bb6 {[%emt 0:00:12]} 24. h3 {[%emt 0:00:09]} Bxf2+ {[%emt 0:00:05]} 25. Kh2 {[%emt 0:00:01]} Bg3+ {[%emt 0:00:09]} 26. Kg1 {[%emt 0:00:04]} Qc5+ {[%emt 0:00:03]} 27. Kh1 {[%emt 0:00:11]} Nf2+ {[%emt 0:01:17]} 28. Kg1 Nxh3+ {[%emt 0:00:00]} 29. Kf1 {[%emt 0:00:03]} Qg1+ {[%emt 0:00:00]} 30. Ke2 {[%emt 0:00:01]} Nf4+ {[%emt 0:00:00]} 31. Kd2 {[%emt 0:00:04]} Qe1+ {[%emt 0:00:00]} 32. Kc2 {[%emt 0:00:01]} Qe2+ {[%emt 0:00:00]} 33. Qxe2 {[%emt 0:00:02]} Nxe2 {[%emt 0:00:00]} 34. Nf3 {[%emt 0:00:01]} 1-0

[Event "Austria Championship Blitz 2024"]
[Site "Innsbruck"]
[Date "2024.06.01"]
[Round "11.14"]
[White "Kranzl, Peter"]
[Black "Teuschler, Barbara"]
[Result "0-1"]
[ECO "B22"]
[WhiteElo "2157"]
[BlackElo "2040"]
[Annotator "RC"]
[PlyCount "75"]
[EventDate "2024.06.01"]
[EventType "swiss"]
[EventCountry "AUT"]
[SourceTitle "playchess.com"]
[Source "ChessBase"]
[SourceQuality "1"]
[TimeControl "180+2"]

1. e4 {[%emt 0:00:01]} c5 {[%emt 0:00:00]} 2. c3 {[%emt 0:00:02]} Nf6 {[%emt 0:00:02]} 3. e5 {[%emt 0:00:01]} Nd5 {[%emt 0:00:00]} 4. d4 {[%emt 0:00:01]} cxd4 {[%emt 0:00:02]} 5. Qxd4 {[%emt 0:00:02]} e6 {[%emt 0:00:01]} 6. Nf3 {[%emt 0:00:02]} Nc6 {[%emt 0:00:01]} 7. Qe4 {[%emt 0:00:01]} d6 {[%emt 0:00:18]} 8. Nbd2 {[%emt 0:00:05]} Be7 {[%emt 0:00:03]} 9. Nc4 {[%emt 0:00:10]} dxe5 {[%emt 0:00:07]} 10. Nfxe5 {[%emt 0:00:02]} Nxe5 {[%emt 0:00:11]} 11. Nxe5 {[%emt 0:00:16]} O-O {[%emt 0:00:04]} 12. Bd3 {[%emt 0:00:18]} Nf6 {[%emt 0:00:02]} 13. Qe2 {[%emt 0:00:07]} Nd7 {[%emt 0:00:35]} 14. Nxd7 {[%emt 0:00:25]} Bxd7 {[%emt 0:00:02]} 15. Qe4 {[%emt 0:00:17]} g6 {[%emt 0:00:10]} 16. Qxb7 {[%emt 0:00:02]} Bc6 {[%emt 0:00:08]} 17. Qxc6 {[%emt 0:00:07]} Qxd3 {[%emt 0:00:02]} 18. Qf3 {[%emt 0:00:05]} Qa6 {[%emt 0:00:30]} 19. Qe2 {[%emt 0:00:02]} Qb7 {[%emt 0:00:06]} 20. O-O {[%emt 0:00:03]} Rfd8 {[%emt 0:00:01]} 21. Be3 {[%emt 0:00:13]} Rd5 {[%emt 0:00:01]} 22. Bd4 {[%emt 0:00:13]} Rg5 {[%emt 0:00:09]} 23. f3 {[%emt 0:00:05]} Re8 {[%emt 0:00:01]} 24. Rad1 {[%emt 0:00:04]} e5 {[%emt 0:00:04]} 25. Bf2 {[%emt 0:00:09]} Bf8 {[%emt 0:00:10]} 26. Rfe1 {[%emt 0:00:08]} a5 {[%emt 0:00:12]} 27. b3 {[%emt 0:00:02]} h5 {[%emt 0:00:02]} 28. Qe4 {[%emt 0:00:03]} Qb8 {[%emt 0:00:04]} 29. c4 {[%emt 0:00:05]} Rf5 {[%emt 0:00:01]} 30. Qd5 {[%emt 0:00:04]} e4 {[%emt 0:00:08]} 31. Qc6 {[%emt 0:00:16]} Rc5 {[%emt 0:00:08]} 32. Qa4 {[%emt 0:00:08]} Rg5 {[%emt 0:00:04]} 33. Rxe4 {[%emt 0:00:09]} Rxe4 {[%emt 0:00:02]} 34. fxe4 {[%emt 0:00:00]} Qf4 {[%emt 0:00:09]} 35. Re1 {[%emt 0:00:20]} Qg4 {[%emt 0:00:04]} 36. g3 {[%emt 0:00:02]} h4 {[%emt 0:00:04]} 37. Qc6 {[%emt 0:00:06]} Qf3 {[%emt 0:00:28]} 38. Re3 {[%emt 0:00:02]} 0-1